Cogmind - Beta 16.1 @@@ ROGUE MODE // 2026.04.24 @ 21:30:27 Player: Jgu1971 Result: Destroyed by TA-GHH(R) with Subdweller Laser Performance ------------- Evolutions (0) 0 Regions Visited (2) 400 Robots Destroyed (9) 45 Value Destroyed (160) 160 Prototype IDs (0) 0 Alien Tech Used (0) 0 Bonus (0) 0 TOTAL SCORE: 605 Bonus ------- None Cogmind --------- Core Integrity 0/250 Matter 300/300 Energy 75/100 System Corruption 0% Temperature Cool (6) Movement Core (150) Ox2 Location -10/Subcaves Parts ------- > --- POWER (1) -------- (None) > --- PROPULSION (2) --- (None) > --- UTILITY (2) ------ Small Storage Unit > --- WEAPON (2) ------- Beam Cannon > --- INVENTORY (8) ---- Ion Engine Peak State ------------ > --- POWER ------------ Ion Engine > --- PROPULSION ------- Aluminum Leg Aluminum Leg > --- UTILITY ---------- Small Storage Unit Medium Matter Pod > --- WEAPON ----------- Assault Rifle Light Assault Rifle > --- INVENTORY -------- Ion Engine EM Pulse Gun Beam Cannon [Rating: 7] Favorites ----------- Power Ion Engine Engine Ion Engine Propulsion Aluminum Leg Leg Aluminum Leg Utility Small Storage Unit Storage Small Storage Unit Weapon Light Assault Rifle Energy Cannon Beam Cannon Ballistic Gun Light Assault Rifle Build | -11 -10 -10 ------- Run | Yrd Mat Sub Slots Evolved . | . . . Power . | . . . Propulsion . | . . . Utility . | . . . Weapon . | . . . Parts Attached 8 | 6 1 1 Power 1 | 1 . . Engine 1 | 1 . . Core . | . . . Reactor . | . . . Propulsion 2 | 2 . . Treads . | . . . Leg 2 | 2 . . Wheel . | . . . Hover . | . . . Flight . | . . . Utility 2 | 1 1 . Device . | . . . Storage 2 | 1 1 . Processor . | . . . Hackware . | . . . Protection . | . . . Artifact . | . . . Weapon 3 | 2 . 1 Energy Gun . | . . . Energy Cannon 1 | . . 1 Ballistic Gun 2 | 2 . . Ballistic Cannon . | . . . Launcher . | . . . Special Weapon . | . . . Impact Weapon . | . . . Slashing Weapon . | . . . Piercing Weapon . | . . . Special Melee Weapon . | . . . Unidentified Prototypes . | . . . Parts Lost 6 | . . 6 Power 1 | . . 1 Propulsion 2 | . . 2 Utility 1 | . . 1 Weapon 2 | . . 2 Highest Loss Streak 3 | . . 3 To Critical Strikes . | . . . Average Backups 1 | 2 2 1 Power . | . 1 1 Propulsion . | . . . Utility . | . . . Weapon . | . 1 . Tool/Special . | . . . Unused Backups 2 | . 1 1 Power 1 | . . 1 Propulsion . | . . . Utility . | . . . Weapon 1 | . 1 . Tool/Special . | . . . Average Slot Usage (%) 76 | . 95 72 Engine 13 | . 14 13 Leg 6 | . 28 2 Storage 27 | . 23 28 Energy Cannon 10 | . . 12 Ballistic Gun 17 | . 28 15 Peak Build Rating 7 | 6 7 7 Average Rating 5 | 4 6 5 On Entrance 4 | . 6 7 Avg Prop Armor Cover (%) . | . . . Naked Turns . | . . . Heaviest Build 16 | 13 15 16 Greatest Support 20 | 20 20 20 Greatest Overweight (x) 5 | . . 5 Average Overweight (x) 2 | . . 4 Largest Inventory Capacity 8 | 8 8 8 Average Capacity 7 | 7 8 8 Most Carried 5 | 5 4 2 Average Carried 1 | 1 2 1 Final Capacity 8 | 8 8 8 Final Carried 2 | 2 2 1 Class Distribution -------------------- 100% | Mutant Dominant Class ---------------- Mutant | -10/Materials Mutant | -10/Subcaves Resources | -11 -10 -10 ----------- Run | Yrd Mat Sub Matter Collected 431 | 245 37 149 Remotely . | . . . Salvage Created 183 | . 37 146 Parts 11 | . 4 7 Haulers Intercepted . | . . . Recyclers Shooed . | . . . Parts Field Recycled . | . . . Retrieved Matter . | . . . Parts Self-Destructed 20 | . . 20 Prevented . | . . . Parts Restored . | . . . Kills | -11 -10 -10 ------- Run | Yrd Mat Sub Combat Hostiles Destroyed 7 | . 3 4 Guns 6 | . 3 3 Classes Destroyed 3 | . 1 2 Turret 2 | . . 2 Swarmer 6 | . 3 3 Subdweller 1 | . . 1 Best Kill Streak 3 | . 3 2 Combat Bots Only 3 | . 3 2 Max Kills in Single Turn 1 | . 1 1 Gunslinging . | . . . Exploded . | . . . Melee . | . . . Uniques/NPCs Destroyed . | . . . Combat | -11 -10 -10 -------- Run | Yrd Mat Sub Hostile Shots Fired 150 | . 10 140 Missed 52 | . 4 48 Hits 98 | . 6 92 Projectile 98 | . 6 92 Critical Strikes 1 | . . 1 Damage Taken 889 | . 47 842 Core 269 | . 15 254 Absorbed by Shields . | . . . Core Remaining (%) 100 | 100 . . Volleys Fired 75 | . 5 70 Largest 2 | . 2 2 Hottest 80 | . 40 80 Shots Fired 137 | . 10 127 Gun 88 | . 10 78 Cannon 49 | . . 49 Launcher . | . . . Special . | . . . Kinetic 88 | . 10 78 Thermal 49 | . . 49 Explosive . | . . . Electromagnetic . | . . . Robot Hit Streak 2 | . 1 2 Robot Miss Streak 5 | . 2 5 Penetration Max . | . . . Secondary Targets 3 | . 2 1 Max Gunslinging Chain 1 | . 1 1 Shots Hit Robots 27 | . 4 23 Core Hits 14 | . 3 11 Critical Kills 1 | . . 1 Critical Parts Destroyed . | . . . Critical Strikes 1 | . . 1 Meltdown 1 | . . 1 Melee Attacks . | . . . Impact . | . . . Slashing . | . . . Piercing . | . . . Sneak Attacks . | . . . Combat Hostiles . | . . . Follow-up Attacks . | . . . Damage Inflicted 373 | . 43 330 Guns 268 | . 43 225 Cannons 105 | . . 105 Explosions . | . . . Melee . | . . . Ramming . | . . . Kinetic 268 | . 43 225 Thermal 105 | . . 105 Explosive . | . . . Electromagnetic . | . . . Impact . | . . . Slashing . | . . . Piercing . | . . . Highest Corruption . | . . . Average Corruption . | . . . Corruption Purged . | . . . Corruption Blocked . | . . . Overload Shots . | . . . Overflow Damage . | . . . Projectiles . | . . . Explosions . | . . . Melee . | . . . Knockbacks . | . . . Impact . | . . . Kinetic . | . . . Secondary . | . . . Self-Inflicted Damage . | . . . Shots . | . . . Rammed . | . . . Targets Rammed . | . . . Kicked . | . . . Crushed . | . . . Highest Temperature 12 | . . 12 Average Temperature 4 | . . 4 Received Heat Transfer 360 | . . 360 Siege Activations . | . . . Martial Activations . | . . . Shielding Activations . | . . . Robots Disrupted . | . . . Combat Hostiles . | . . . Robots Corrupted . | . . . Combat Hostiles . | . . . Parts Fried . | . . . Impact Corruptions . | . . . Robots Melted 1 | . . 1 Combat Hostiles 1 | . . 1 Parts Melted 3 | . . 3 Heat Transferred 222 | . . 222 Parts Sabotaged . | . . . Parts Stolen . | . . . Parts Stripped . | . . . Power Chain Reactions . | . . . Alert | -11 -10 -10 ------- Run | Yrd Mat Sub Maximum Alert Level . | . . . Low Security (%) 100 | 100 100 . Level 1 . | . . . Level 2 . | . . . Level 3 . | . . . Level 4 . | . . . Level 5 . | . . . High Security . | . . . Max Security . | . . . Peak Influence 60 | . 60 . Initial . | . . . Average 10 | . 12 . Influence Increases 180 | . 70 110 Destroy 0b10 Robot/C 160 | . 60 100 Destroy Leader 20 | . 10 10 Influence Decreases 180 | . 60 120 Entered New Map 6 | . . 6 Time Decay 144 | . 60 84 Lost Part 30 | . . 30 Squads Dispatched . | . . . Investigation . | . . . Extermination . | . . . Reinforcement . | . . . Assault . | . . . Garrison . | . . . Intercept . | . . . Searches Triggered . | . . . Construction Impeded . | . . . Haulers Reinforced . | . . . Active Scanning Responses . | . . . Cargo Convoy Interrupts . | . . . Stealth | -11 -10 -10 --------- Run | Yrd Mat Sub Distress Signals . | . . . Communications Jammed . | . . . Distress Signals . | . . . Times Spotted 17 | . 6 11 Peak Tracking Total 6 | . 4 6 Tactical Retreats . | . . . Traps | -11 -10 -10 ------- Run | Yrd Mat Sub Traps Triggered . | . . . Indirectly . | . . . Trap Hack Attempts . | . . . Triggered . | . . . Disarmed . | . . . Reprogrammed . | . . . Reused . | . . . Traps Extracted . | . . . Installed . | . . . Triggered . | . . . Machines | -11 -10 -10 ---------- Run | Yrd Mat Sub Machines Disabled 1 | . . 1 Max in Single Turn 1 | . . 1 Machines Repaired . | . . . Machines Dismantled . | . . . Machines Sabotaged . | . . . Overloaded Fab Kills . | . . . Hacking | -11 -10 -10 --------- Run | Yrd Mat Sub Machines Accessed 3 | . 3 . Terminals 2 | . 2 . Fabricators . | . . . Repair Stations . | . . . Recycling Units 1 | . 1 . Scanalyzers . | . . . Garrison Access . | . . . Total Hacks 7 | . 7 . Successful 4 | . 4 . Failed 3 | . 3 . Catastrophic . | . . . Database Lockouts . | . . . Manual . | . . . Terminals 3 | . 3 . Fabricators . | . . . Repair Stations . | . . . Recycling Units 4 | . 4 . Scanalyzers . | . . . Garrison Access . | . . . Terminal Hacks 1 | . 1 . Alert Level 1 | . 1 . Fabricator Hacks . | . . . Repair Station Hacks . | . . . Recycling Unit Hacks 3 | . 3 . Recycle Component 1 | . 1 . Process 1 | . 1 . Report Inventory 1 | . 1 . Scanalyzer . | . . . Garrison Access Hacks . | . . . Unauthorized Hacks . | . . . Terminals . | . . . Fabricators . | . . . Repair Stations . | . . . Recycling Units . | . . . Scanalyzers . | . . . Garrison Access . | . . . Data Cores Recovered . | . . . Used . | . . . Hacking Detections 3 | . 3 . Full Trace Events . | . . . Feedback Events . | . . . Feedback Blocked . | . . . Robot Schematics Acquired . | . . . Robots Built . | . . . Authchips . | . . . Time . | . . . Total Robot Build Rating . | . . . Part Schematics Acquired . | . . . Parts Built . | . . . Authchips . | . . . Time . | . . . Total Part Build Rating . | . . . Part Studies Acquired . | . . . Parts Repaired . | . . . Time . | . . . Parts Recycled 1 | . 1 . Recycled Matter 24 | . 24 . Retrieved Matter . | . . . Retrieved Components . | . . . Parts Scanalyzed . | . . . Part Schematics Acquired . | . . . Parts Damaged . | . . . Bothacking | -11 -10 -10 ------------ Run | Yrd Mat Sub Used RIF Installer . | . . . Robots Hacked . | . . . Non-combat . | . . . Combat . | . . . Robot Hacks Applied . | . . . Relay Couplers Released . | . . . Fabnet Peak Effective % . | . . . Robots Rewired . | . . . Allies Hacked . | . . . Hacks Repelled . | . . . Allies | -11 -10 -10 -------- Run | Yrd Mat Sub Total Allies . | . . . Largest Group . | . . . Highest-Rated Group . | . . . Highest-Rated Ally . | . . . Total Orders . | . . . Ally Attacks . | . . . Total Damage . | . . . Kills . | . . . Allies Corrupted . | . . . Allies Melted . | . . . Intel | -11 -10 -10 ------- Run | Yrd Mat Sub Active Infowar (turns) . | . . . Robot Analysis Total . | . . . Derelict Logs Recovered 1 | . . 1 Drone Launches . | . . . Drone Recoveries . | . . . Exploration | -11 -10 -10 ------------- Run | Yrd Mat Sub Turns Passed 1974 | 69 326 1579 Spaces Moved 828 | 59 258 511 Core 459 | 22 . 437 Treads . | . . . Legs 369 | 37 258 74 Wheels . | . . . Hover . | . . . Flight . | . . . Fastest Speed 50 | 50 120 120 Average Speed 212 | 93 120 272 Slowest Speed 300 | 120 120 300 Overloaded Moves . | . . . Propulsion Burnouts . | . . . Robots Hopped . | . . . Potential Cave-ins . | . . . Cave-ins Triggered . | . . . Exploration Rate (%) 20 | 3 39 19 Regions Visited 2 Branch Regions 1 Pre-discovered Areas . | . . . Known Exits Taken . | . . . Unknown Exits Taken 2 | 1 1 . Scrap Searched . | . . . Spaces Dug . | . . . Terrain Destroyed . | . . . Melee . | . . . Projectile . | . . . AOE . | . . . Terrain Rammed . | . . . Walls Destroyed . | . . . Machines Disabled . | . . . Actions | -11 -10 -10 --------- Run | Yrd Mat Sub Total 921 | 72 265 584 Wait 2 | . . 2 Move 826 | 58 257 511 Hop . | . . . Pick Up 10 | 8 2 . Fast Attach . | . . . Attach 8 | 6 1 1 Detach . | . . . Swap . | . . . Drop . | . . . Fire 75 | . 5 70 Melee . | . . . Ram . | . . . Kick . | . . . Crush . | . . . Escape Stasis . | . . . Rewire . | . . . Trap . | . . . Miscellaneous . | . . . Route ------- -11/Scrapyard -10/Materials (discovered 2 exits: [*Min] / [*Sub]) -10/Subcaves (discovered 1 exit: [*Rec]) History --------- Turn | Location | Event 8 | -11/Scrapyard | Discovered new exit (range 16) 70 | -11/Scrapyard | Entered Materials 153 | -10/Materials | Discovered new exit (range 16) 309 | -10/Materials | Build established: Mutant 387 | -10/Materials | Discovered new exit (range 5) 396 | -10/Materials | Entered Subcaves 396 | -10/Subcaves | Learned 4 Materials zone layouts 397 | -10/Subcaves | Approached by a straggling Scientist 505 | -10/Subcaves | Discovered new exit (range 14) 528 | -10/Subcaves | Core integrity fell below 50% 564 | -10/Subcaves | Lost 3 parts (2n1w) 1958 | -10/Subcaves | Core integrity fell below 20% 1975 | -10/Subcaves | Destroyed by TA-GHH(R) with Subdweller Laser Last Messages --------------- 01529_ 4E-1HM(u) tweaks Twisted Machinery. 90-LZD(c): "I think it's somewhere southeast of here" 01576_ 4E-1HM(u) tweaks Twisted Machinery. 90-LZD(c): "I think it's somewhere southeast of here" 90-LZD(c): "I think it's somewhere south of here" 01937_ Ion Engine destroyed. 01954_ Lgt. Assault Rifle destroyed. 01958_ XV-F3F(R) suffers critical hit (Meltdown). 01958_ Sub. Power Source melted. 01958_ Sub. Monowheel melted. 01958_ Sub. Optics melted. 01965_ Subatomizers dissect the Disposable Heat Sink. 01965_ TA-GHH(R) affixes Scrap Shield Fragment to Scrap Shield. 01972_ Med. Matter Pod destroyed. Map ----- +----------------------------------------------------+ | ?????????????????????????????????????????????????? | | ?????????????????????????????????????????????????? | | ?????????????????????????????????????????????????? | | ?????????????????????????????????????????????????? | | ?????????????????????????????????????????????????? | | ?????????????????????????????????????????????????? | | ?????????????????????????????????????????????????? | | ?????????????????????????????????????????????????? | | ????????????????????#????????????????????????????? | | ???????????????????# ????????????????????????????? | | ???????????????????? ??????????????????????????? | | ????????????????????# ?????????????????????????? | | ?????????????????###? "##?#####?????????????????? | | ????????????????## ? " ## #?????????????????? | | ????????????????? ?? ?????????????????? | | ??????????????????# ??# ??????????????????? | | ???????????????????# #?# #??????????????????? | | ????????????? ### ## ###????##??????????? | | ????????????# ### "# ????????? | | ????????????# """"????????? | | ???????????? ???? | | ??????????????????# ## %## ## # #??????????? | | ????????????????????????# R!####?????????????????? | | ??????????????????????### ##???????????????????? | | ?????????????????????## #???????????????????? | | ?????????????????????# @ #???????????????????? | | ????????????????????## ### #???????????????????? | | ?????????????????#### #?####???????????????????? | | ?????????????????# #????????????????????????? | | ?????????????????# #????????????????????????? | | ?????????????????# ###????????????????????????? | | ?????????????????# ##??????????????????????????? | | ?????????????????# #???????????????????????????? | | ?????????????????# #???????????????????????????? | | ?????????######### #???????????????????????????? | | ?????????# ## ##???????????????????????????? | | ?????????# ###??????????????????????????? | | ?????????### #??????????????????????????? | | ???????????##### ##??????????????????????????? | | ??????????????## ####???????????????????????????? | | ?????????????## ##?????????????????????????????? | | ?????????????# #?????????????????????????????? | | ????###??????# ##?????????????????????????????? | | ???## ##?????## ##?##???###?????????????????????? | | ???# #?????## #?? ### ??????????????????### | | ????# ##???## #??# ??????????????????## # | | ????# ##### #??# ???????????????????# | | ????# #??# #?????????????????### | | ????# #??# ###?????????????### | | ????# #??# #???????####### | +----------------------------------------------------+ Best States ------------- Heat Dissipation 25 Energy Generation 10 Energy Capacity 250 Matter Stores 369 Matter Capacity 400 Sight Range 16 Terrain Scan Density 10 Evasion (%) 55 Item Schematics ----------------- None Robot Schematics ------------------ None Fabricated ------------ Nothing Repaired ---------- Nothing Studied --------- None Alien Tech Used ----------------- None Achievements -------------- None Challenges ------------ None Game ------ Seed CloakingRingMediator Manual? 0 Play Time 00:17:10 Cumulative 7.2 hours Start 2026.04.24 @ 21:14:01 End 2026.04.24 @ 21:30:27 Sessions 1 Manual Loads 0 Difficulty Rogue Special Mode None Game No. 9 Rogue 9 Adventurer 0 Explorer 0 Win Type - Total 0 Types 0/0/0/0/0/0/0/0/0/0 Lore% 6 Gallery% 6 Achievement% 7 Wizard Run 0 Options --------- Layout 1 ASCII 0 Keyboard 0 Movement Arrows Keybinds 0 Fullscreen 1 Font 24/Tamsyn Map View 50x40 Zoom Use 0% Tactical HUD 1 Map Filters NONE Filters NONE Steam 1 RUN: 9887e1dd-56c2-4cb0-a6d4-708471323ab2